bitfinex/quotes_SOLUSD_20250728
["timestamp","ask_amount","ask_price","bid_price","bid_amount"]
[1753671044522,54.72481438,191.48,191.47,1e-08]
[1753671045147,55.39481438,191.48,191.47,1e-08]
[1753671045449,72.17949835,191.48,191.47,1e-08]
[1753671046425,26.0,191.45,191.43,0.06]
[1753671046625,0.14216157,191.43,191.38,0.06]
[1753671046833,7.84463667,191.39,191.38,0.06]
[1753671047034,46.18463667,191.39,191.38,0.78]
[1753671047664,0.26758096,191.42,191.38,0.78]
[1753671047665,13.06902411,191.41,191.38,0.78]
[1753671047858,0.26758096,191.4,191.38,8.62463667]
[1753671048066,0.26758096,191.42,191.39,0.72]
[1753671048657,0.26758096,191.42,191.41,7.84463667]
[1753671048836,38.34,191.44,191.41,0.72]
[1753671049041,0.26758096,191.43,191.41,0.72]
[1753671049350,38.34,191.42,191.41,0.72]
[1753671049656,43.56411451,191.42,191.41,0.72]
[1753671051151,43.56411451,191.42,191.38,8.62463667]
[1753671051344,0.26758096,191.41,191.39,0.72]
[1753671051545,0.26758096,191.41,191.38,0.06]
[1753671051751,5.4919684,191.41,191.4,0.72]
[1753671051943,0.26758096,191.41,191.4,0.72]
[1753671053254,0.26758096,191.41,191.4,0.78]
[1753671053553,0.26758096,191.42,191.4,8.62463667]
[1753671053752,0.26758096,191.43,191.41,7.84463667]
[1753671054061,0.26758096,191.43,191.4,5.28465159]
[1753671054062,0.26758096,191.43,191.42,8.56463667]
[1753671054262,0.26758096,191.45,191.42,0.72]
[1753671054430,0.26758096,191.45,191.43,0.72]
[1753671054628,0.26758096,191.45,191.44,0.72]
[1753671055056,0.26758096,191.45,191.44,8.56463667]
[1753671055246,0.03,191.48,191.44,8.56463667]
[1753671055433,0.26758096,191.47,191.46,7.84463667]
[1753671055633,0.26758096,191.47,191.46,8.55463667]
[1753671056435,0.03,191.48,191.46,8.55463667]
[1753671056766,0.03,191.48,191.47,25.33932064]
[1753671057186,0.03,191.48,191.47,30.56207094]
[1753671057865,0.03,191.48,191.47,56.56207094]
[1753671058072,5.22003609,191.57,191.48,16.78468397]
[1753671058237,5.22003609,191.57,191.53,7.84463667]
[1753671058238,0.26758096,191.56,191.53,7.84463667]
[1753671058447,0.26758096,191.56,191.54,0.71]
[1753671059164,5.4879062,191.56,191.54,0.71]
[1753671059535,51.67254287,191.56,191.5,8.55463667]
[1753671060137,51.67254287,191.56,191.5,0.71]
[1753671060479,7.84463667,191.52,191.46,0.71]
[1753671060658,8.11221763,191.51,191.45,7.84463667]
[1753671060840,7.84463667,191.46,191.4,0.77]
[1753671061043,7.84463667,191.44,191.4,0.77]
[1753671061366,5.49143566,191.43,191.4,0.06]
[1753671061737,13.33607233,191.43,191.4,0.06]
[1753671061936,38.34,191.42,191.4,0.06]
[1753671062173,0.26758096,191.41,191.4,0.06]
[1753671062860,0.26758096,191.41,191.4,8.61463667]
[1753671063050,38.32,191.46,191.4,8.61463667]
[1753671063366,5.49100761,191.45,191.4,8.61463667]
[1753671063565,5.49100761,191.45,191.4,7.90463667]
[1753671063765,5.49100761,191.45,191.41,0.71]
[1753671063971,5.49100761,191.45,191.4,7.90463667]
[1753671063972,0.26758096,191.45,191.42,8.55463667]
[1753671064271,0.26758096,191.47,191.44,7.84463667]
[1753671064572,0.26758096,191.47,191.46,7.84463667]
[1753671064785,0.26758096,191.47,191.45,0.71]
[1753671064942,0.26758096,191.47,191.46,7.84463667]
[1753671065343,0.26758096,191.47,191.46,8.55463667]
[1753671065638,0.26758096,191.47,191.45,7.84463667]
[1753671065865,0.26758096,191.47,191.43,0.71]
[1753671066072,0.26758096,191.47,191.45,7.84463667]
[1753671066450,0.26758096,191.47,191.44,0.71]
[1753671066668,5.49034187,191.47,191.45,7.84463667]
[1753671066849,5.49034187,191.47,191.41,22.00897008]
[1753671067034,5.49034187,191.47,191.44,7.84463667]
[1753671067836,5.49034187,191.47,191.45,7.84463667]
[1753671068040,5.49034187,191.47,191.45,8.55463667]
[1753671068266,0.26758096,191.47,191.46,8.55463667]
[1753671068444,38.58758096,191.48,191.46,7.84463667]
[1753671068643,0.26758096,191.47,191.45,7.84463667]
[1753671069247,0.26758096,191.47,191.44,7.84463667]
[1753671069451,5.49037002,191.47,191.45,7.84463667]
[1753671069761,38.32,191.48,191.46,8.55463667]
[1753671069947,0.26758096,191.47,191.46,0.71]
[1753671070863,5.22193211,191.5,191.46,0.71]
[1753671071071,0.26758096,191.49,191.47,7.84463667]
[1753671071473,5.22247754,191.48,191.47,7.84463667]
[1753671071657,5.22247754,191.48,191.45,0.71]
[1753671071858,0.26758096,191.47,191.45,0.71]
[1753671072180,0.26758096,191.47,191.46,7.84463667]
[1753671072844,5.22226687,191.49,191.46,8.55463667]
[1753671073047,0.26758096,191.48,191.47,8.55463667]
[1753671073947,0.26758096,191.5,191.47,8.55463667]
[1753671074271,0.26758096,191.52,191.49,7.84463667]
[1753671074570,5.4891663,191.52,191.5,7.84463667]
[1753671075146,0.26758096,191.52,191.51,7.84463667]
[1753671075347,38.32,191.54,191.51,8.55463667]
[1753671075542,0.26758096,191.55,191.53,7.84463667]
[1753671075770,0.26758096,191.55,191.52,0.71]
[1753671075983,0.26758096,191.55,191.53,7.84463667]
[1753671076196,0.26758096,191.55,191.49,0.71]
[1753671076487,4.14578858,191.55,191.5,7.84463667]
[1753671076777,5.22084159,191.54,191.5,8.55463667]
[1753671076949,0.26758096,191.53,191.5,8.55463667]
[1753671077355,0.26758096,191.53,191.48,1.503]
[1753671077556,46.43221763,191.53,191.47,0.06]
[1753671077750,46.43221763,191.53,191.5,7.84463667]
[1753671077751,38.58758096,191.53,191.5,7.84463667]
[1753671077963,38.58758096,191.53,191.5,8.55463667]
[1753671078665,7.84463667,191.52,191.47,0.06]
[1753671078868,39.24758096,191.53,191.47,0.06]
[1753671078869,5.22193211,191.5,191.47,7.90463667]
[1753671079180,0.26758096,191.49,191.47,7.90463667]
[1753671079383,5.4893002,191.51,191.48,0.71]
[1753671079580,5.4893002,191.51,191.49,7.84463667]
[1753671079780,5.4893002,191.51,191.47,0.06]
[1753671079990,5.4893002,191.51,191.48,7.84463667]
[1753671080672,5.4893002,191.51,191.49,7.84463667]
[1753671080871,5.4893002,191.51,191.48,0.71]
[1753671081076,5.4893002,191.51,191.48,7.84463667]
[1753671081387,5.4893002,191.51,191.47,0.06]
[1753671081683,3.89620671,191.5,191.47,0.06]
[1753671081886,0.26758096,191.49,191.47,7.90463667]
[1753671082254,0.26758096,191.5,191.48,8.55463667]
[1753671082456,0.26758096,191.5,191.49,8.55463667]
[1753671083465,0.26758096,191.52,191.49,8.55463667]
[1753671083665,0.26758096,191.55,191.52,16.78468397]
[1753671083881,0.03,191.56,191.54,24.62932064]
[1753671084080,0.03,191.56,191.55,24.62932064]
[1753671084294,0.03,191.56,191.55,7.84463667]
[1753671085200,0.03,191.56,191.55,8.49463667]
[1753671086603,0.03,191.56,191.55,13.71520571]
[1753671086803,0.03,191.56,191.55,8.49463667]
[1753671087606,0.03,191.56,191.53,1.5129]
[1753671087776,0.03,191.56,191.55,7.84463667]
[1753671088407,0.03,191.56,191.55,8.49463667]
[1753671090000,0.03,191.56,191.55,56.49988968]
[1753671090888,0.03,191.56,191.55,51.27932064]
[1753671091579,0.03,191.56,191.55,50.62932064]
[1753671091781,0.03,191.56,191.55,7.84463667]
[1753671092294,0.03,191.56,191.55,8.49463667]
[1753671094410,0.03,191.56,191.55,13.71520571]
[1753671094701,0.03,191.56,191.55,8.49463667]
[1753671095481,0.03,191.56,191.55,13.71520571]
[1753671097821,0.03,191.6,191.55,13.71520571]
[1753671097980,0.03,191.6,191.59,50.62932064]
[1753671098406,0.03,191.6,191.59,51.27932064]
[1753671098884,0.03,191.6,191.59,51.80126854]
[1753671099085,0.03,191.64,191.6,0.28432314]
[1753671099279,0.03,191.64,191.63,50.62932064]
[1753671099618,0.03,191.64,191.63,51.27932064]
[1753671099931,0.03,191.64,191.63,88.88932064]
[1753671100208,0.03,191.64,191.63,89.53932064]
[1753671101308,0.03,191.64,191.63,94.75771024]
[1753671102729,0.03,191.64,191.63,89.53932064]
[1753671102941,0.03,191.64,191.63,94.75771024]
[1753671103445,0.03,191.64,191.63,102.60234691]
[1753671103924,0.03,191.64,191.63,94.75771024]
[1753671104829,0.03,191.64,191.63,89.53932064]
[1753671105041,0.03,191.64,191.63,88.88932064]
[1753671105943,0.03,191.64,191.63,33.84463667]
[1753671106633,0.72,191.64,191.63,7.84463667]
[1753671107626,5.9381173,191.64,191.63,7.84463667]
[1753671108122,0.72,191.64,191.63,7.84463667]
[1753671108325,0.03,191.64,191.63,7.84463667]
[1753671108841,0.03,191.64,191.63,24.62932064]
[1753671109548,0.03,191.64,191.63,25.27932064]
[1753671111441,0.03,191.64,191.63,7.84463667]
[1753671115520,0.03,191.64,191.61,16.78468397]
[1753671115849,8.56463667,191.63,191.58,7.84463667]
[1753671116049,0.29758096,191.64,191.56,24.62932064]
[1753671116050,15.30321763,191.62,191.56,24.62932064]
[1753671116216,0.72,191.61,191.56,24.62932064]
[1753671116421,0.98758096,191.6,191.56,24.62932064]
[1753671117155,5.21947909,191.59,191.56,24.62932064]
[1753671117651,5.21947909,191.59,191.57,7.84463667]
[1753671118036,5.21927321,191.6,191.57,7.84463667]
[1753671118852,5.93927321,191.6,191.57,7.84463667]
[1753671119147,5.21927321,191.6,191.57,7.84463667]
[1753671119984,5.21927321,191.6,191.58,7.84463667]
[1753671120151,5.51652797,191.61,191.58,7.84463667]
[1753671120356,5.51652797,191.61,191.6,7.84463667]
[1753671120357,0.03,191.61,191.6,7.84463667]
[1753671120651,5.24893429,191.61,191.6,7.84463667]
[1753671121021,5.24893429,191.61,191.57,7.84463667]
[1753671121221,5.96893429,191.61,191.57,7.84463667]
[1753671121654,0.98758096,191.6,191.55,7.84463667]
[1753671121853,8.11221763,191.6,191.54,24.62932064]
[1753671122027,14.73859824,191.59,191.53,7.84463667]
[1753671122351,8.83221763,191.58,191.52,7.84463667]
[1753671122553,0.26758096,191.58,191.53,17.43468397]
[1753671122731,0.03,191.61,191.57,7.84463667]
[1753671122940,0.03,191.61,191.6,7.84463667]
[1753671123666,0.03,191.61,191.6,31.02044798]
[1753671123845,0.03,191.61,191.6,25.8012413]
[1753671124160,0.03,191.61,191.6,25.27932064]
[1753671124373,0.03,191.61,191.6,7.84463667]
[1753671124660,0.03,191.61,191.6,25.27932064]
[1753671124857,0.03,191.61,191.6,30.49852732]
[1753671125032,0.03,191.64,191.6,30.49852732]
[1753671125232,0.03,191.64,191.63,7.84463667]
[1753671125634,0.03,191.64,191.63,8.49463667]
[1753671127961,0.03,191.64,191.63,13.71302627]
[1753671128470,0.03,191.64,191.63,30.49771024]
[1753671129972,0.03,191.64,191.63,25.27932064]
[1753671130943,0.03,191.64,191.63,30.49771024]
[1753671131346,0.03,191.64,191.63,31.0195492]
[1753671133349,0.03,191.64,191.63,25.27932064]
[1753671134781,0.03,191.64,191.61,26.0]
[1753671134949,0.03,191.64,191.63,7.84463667]
[1753671137055,0.03,191.64,191.63,8.49463667]
[1753671137949,0.03,191.64,191.63,25.27932064]
[1753671140086,0.03,191.64,191.63,17.43468397]
[1753671140290,0.03,191.64,191.63,25.27932064]
[1753671141057,0.03,191.64,191.63,103.30850901]
[1753671141685,0.03,191.64,191.63,95.46387234]
[1753671141891,0.03,191.64,191.63,50.62932064]
[1753671142066,0.03,191.64,191.63,89.43932064]
[1753671142385,0.03,191.64,191.63,88.78932064]
[1753671142682,0.03,191.64,191.63,50.62932064]
[1753671144989,0.03,191.64,191.63,47.68893651]
[1753671145394,0.74,191.64,191.61,4.90425254]
[1753671145752,0.74,191.64,191.62,4.90425254]
[1753671145979,0.97758096,191.63,191.61,4.90425254]
[1753671146188,0.71,191.62,191.6,4.90425254]
[1753671146387,0.97758096,191.61,191.59,4.90425254]
[1753671146588,5.92920668,191.6,191.58,0.06]
[1753671146899,0.26758096,191.59,191.58,0.06]
[1753671147271,0.97758096,191.59,191.58,0.06]
[1753671147472,6.02399507,191.59,191.58,0.06]
[1753671147684,7.68099507,191.59,191.58,0.06]
[1753671148276,14.25899507,191.59,191.58,0.06]
[1753671148668,19.47847416,191.59,191.58,0.06]
[1753671148887,19.62063573,191.59,191.58,0.06]
[1753671149101,14.43206005,191.59,191.58,0.06]
[1753671149971,19.33631259,191.59,191.58,0.06]
[1753671150280,19.62063573,191.59,191.58,0.06]
[1753671150872,21.91967582,191.59,191.58,0.06]
[1753671151193,6.578,191.59,191.58,0.06]
[1753671151373,11.79747909,191.59,191.58,0.06]
[1753671151574,19.71077172,191.59,191.58,0.06]
[1753671151968,19.99509486,191.59,191.58,1e-08]
[1753671156691,49.93747909,191.59,191.58,1e-08]
[1753671157207,38.14,191.59,191.58,1e-08]
[1753671157372,38.14,191.59,191.58,7.91329264]
[1753671157572,38.14,191.59,191.58,0.71000001]
[1753671157774,43.35947909,191.59,191.58,1e-08]
[1753671158272,38.14,191.59,191.58,1e-08]
[1753671159576,38.14,191.59,191.58,0.71000001]
[1753671160493,5.48602742,191.63,191.58,7.91329264]
[1753671160699,38.14,191.62,191.61,7.20329263]
[1753671160874,38.14,191.62,191.61,7.91329263]
[1753671161079,0.03,191.64,191.61,7.91329263]
[1753671161292,5.2481173,191.64,191.63,7.20329263]
[1753671161499,5.2481173,191.64,191.59,0.71]
[1753671161704,0.26758096,191.63,191.61,7.20329263]
[1753671161992,0.26758096,191.63,191.61,7.91329263]
[1753671162191,5.51569826,191.64,191.62,7.91329263]
[1753671162387,0.03,191.64,191.63,7.91329263]
[1753671162804,0.03,191.64,191.63,0.71]
[1753671162979,0.03,191.64,191.63,7.91329263]
[1753671165601,0.03,191.64,191.63,0.71]
[1753671165790,0.03,191.64,191.59,26.0]
[1753671165984,0.26758096,191.63,191.6,7.20329263]
[1753671166184,0.26758096,191.63,191.58,0.71000001]
[1753671166395,46.03329263,191.62,191.58,1e-08]
[1753671166711,0.26758096,191.61,191.59,7.20329263]
[1753671166893,38.12,191.62,191.59,7.20329263]
[1753671167096,0.26758096,191.61,191.58,1e-08]
[1753671167409,5.21920668,191.6,191.58,1e-08]
[1753671167583,38.36758096,191.59,191.58,1e-08]
[1753671168589,43.58706005,191.59,191.58,1e-08]
[1753671171029,43.58706005,191.59,191.58,0.71000001]
[1753671171907,38.1,191.59,191.58,7.91329264]
[1753671172536,43.31947909,191.59,191.58,1e-08]
[1753671173524,38.1,191.59,191.58,1e-08]
[1753671173894,38.1,191.61,191.58,5.61971703]
[1753671174094,38.1,191.61,191.6,4.90971702]
[1753671174399,43.31893752,191.61,191.59,5.61971702]
[1753671174590,43.31893752,191.61,191.58,4.90971703]
[1753671174791,43.31893752,191.61,191.58,5.58971703]
[1753671177091,5.21893752,191.61,191.59,5.58971702]
[1753671177296,43.29893752,191.61,191.59,5.58971702]
[1753671177522,43.29893752,191.61,191.59,0.68]
[1753671177721,43.29893752,191.61,191.58,4.90971703]
[1753671178016,43.29893752,191.61,191.58,0.68000001]
[1753671178207,43.29893752,191.61,191.59,4.90971702]
[1753671178407,43.29893752,191.61,191.58,5.58971703]
[1753671179223,43.29893752,191.61,191.59,4.90971702]
[1753671179929,43.29893752,191.61,191.6,0.68]
[1753671180227,38.08,191.61,191.6,0.68]
[1753671180824,49.13623865,191.61,191.58,1e-08]
[1753671181012,4.90971702,191.59,191.58,1e-08]
[1753671181219,43.56706005,191.59,191.58,1e-08]
[1753671181410,49.13677707,191.59,191.58,1e-08]
[1753671182227,43.56706005,191.59,191.58,1e-08]
[1753671183317,38.34758096,191.59,191.58,4.90971703]
[1753671183515,38.06,191.6,191.58,5.58971703]
[1753671183700,38.06,191.6,191.59,5.58971702]
[1753671184025,38.06,191.6,191.59,0.68]
[1753671184527,38.06,191.6,191.58,4.90971703]
[1753671185030,38.06,191.6,191.58,5.58971703]
[1753671185227,38.06,191.6,191.58,4.90971703]
[1753671185429,38.06,191.6,191.59,0.68]
[1753671185613,38.06,191.6,191.59,5.58971702]
[1753671185813,5.21905988,191.61,191.59,5.58971702]
[1753671186527,5.21905988,191.61,191.59,0.68]
[1753671186707,5.48664084,191.61,191.58,4.90971703]
[1753671187027,38.06,191.6,191.58,4.90971703]
[1753671187226,0.26758096,191.59,191.58,1e-08]
[1753671187434,5.48706005,191.59,191.58,1e-08]
[1753671187637,11.05677707,191.59,191.58,1e-08]
[1753671188940,6.14706005,191.59,191.58,1e-08]
[1753671189112,11.05677707,191.59,191.58,1e-08]
[1753671190143,10.39677707,191.59,191.58,1e-08]
[1753671192033,17.62937707,191.59,191.58,1e-08]
[1753671192215,26.0,191.56,191.54,1e-08]
[1753671192408,43.21729798,191.55,191.54,1e-08]
[1753671192609,44.01945955,191.55,191.54,1e-08]
[1753671193537,49.38219016,191.55,191.54,1e-08]
[1753671195830,48.72219016,191.55,191.54,1e-08]
[1753671196042,10.39786702,191.55,191.54,1e-08]
[1753671196330,48.43786702,191.55,191.54,1e-08]
[1753671198413,43.52815,191.55,191.54,1e-08]
[1753671199122,43.52815,191.55,191.54,0.68000001]
[1753671199943,43.52815,191.55,191.54,1e-08]
[1753671199944,48.43786702,191.55,191.54,1e-08]
[1753671200124,44.18815,191.55,191.54,1e-08]
[1753671200442,48.43786702,191.55,191.54,1e-08]
[1753671201843,43.52815,191.55,191.54,1e-08]
[1753671202049,43.52815,191.55,191.54,0.68000001]
[1753671202827,38.04,191.55,191.54,0.68000001]
[1753671203431,0.26758096,191.56,191.54,5.58971703]
[1753671203749,5.21920668,191.6,191.55,5.58971702]
[1753671203931,0.29758096,191.61,191.57,4.90971702]
[1753671203932,38.02,191.59,191.57,4.90971702]
[1753671204242,38.02,191.59,191.58,0.68]
[1753671204442,38.02,191.59,191.57,0.68]
[1753671204443,43.23958791,191.59,191.57,0.68]
[1753671205024,5.17729798,191.58,191.54,1e-08]
[1753671205240,38.02,191.57,191.54,1e-08]
[1753671205429,0.26758096,191.56,191.54,1e-08]
[1753671205642,38.02,191.55,191.54,1e-08]
[1753671206525,43.50815,191.55,191.54,1e-08]
[1753671206947,43.24056904,191.55,191.54,0.67000001]
[1753671207539,43.24056904,191.55,191.54,1e-08]
[1753671208654,48.15028606,191.55,191.54,1e-08]
[1753671208823,48.85028606,191.55,191.54,1e-08]
[1753671210948,48.99244763,191.55,191.54,1e-08]
[1753671211129,55.34104763,191.55,191.54,1e-08]
[1753671212149,55.60862859,191.55,191.54,1e-08]
[1753671212458,55.75079016,191.55,191.54,1e-08]
[1753671212955,50.14107314,191.55,191.54,1e-08]
[1753671213158,55.05079016,191.55,191.54,1e-08]
[1753671213446,55.75079016,191.55,191.54,1e-08]
[1753671214446,43.48815,191.55,191.54,1e-08]
[1753671214659,5.48815,191.55,191.54,0.67000001]
[1753671214823,43.48815,191.55,191.54,0.67000001]
[1753671215028,43.48815,191.55,191.54,1e-08]
[1753671215249,43.48815,191.55,191.54,0.67000001]
[1753671215445,43.48815,191.55,191.54,1e-08]
[1753671215942,48.39786702,191.55,191.54,1e-08]
[1753671216137,49.09786702,191.55,191.54,1e-08]
[1753671216728,49.24002859,191.55,191.54,1e-08]
[1753671217060,75.24002859,191.55,191.54,1e-08]
[1753671217358,75.38219016,191.55,191.54,1e-08]
[1753671217581,82.79325755,191.55,191.54,1e-08]
[1753671218732,82.09325755,191.55,191.54,1e-08]
[1753671219955,82.79325755,191.55,191.54,1e-08]
[1753671220567,26.0,191.52,191.5,1e-08]
[1753671220735,47.05770457,191.51,191.5,1e-08]
[1753671222666,52.27936401,191.51,191.5,1e-08]
[1753671223968,43.4692404,191.51,191.5,0.67000001]
[1753671224645,38.24758096,191.51,191.5,0.67000001]
[1753671224844,43.4692404,191.51,191.5,0.67000001]
[1753671225143,43.4692404,191.51,191.5,1e-08]
[1753671225348,48.37895742,191.51,191.5,1e-08]
[1753671226154,5.4892404,191.51,191.5,0.67000001]
[1753671226351,43.4692404,191.51,191.5,0.67000001]
[1753671226545,43.4692404,191.51,191.5,1e-08]
[1753671227764,43.4692404,191.51,191.5,0.67000001]
[1753671228642,48.37895742,191.51,191.5,1e-08]
[1753671229039,43.4692404,191.51,191.5,1e-08]
[1753671229238,43.4692404,191.51,191.5,0.67000001]
[1753671230247,38.24758096,191.51,191.5,0.67000001]
[1753671230740,37.98,191.51,191.5,0.67000001]
[1753671230936,41.77106599,191.55,191.5,5.57971703]
[1753671230937,2.71964339,191.55,191.5,5.57971703]
[1753671231267,0.26758096,191.58,191.54,4.90971702]
[1753671231476,37.96,191.57,191.55,0.67]
[1753671231648,0.26758096,191.56,191.53,4.90971702]
[1753671232143,0.26758096,191.56,191.55,21.69440099]
[1753671232344,0.03,191.59,191.55,21.69440099]
[1753671232652,0.03,191.59,191.56,0.67]
[1753671232862,0.03,191.59,191.58,4.90971702]
[1753671233243,0.03,191.59,191.58,22.36440099]
[1753671233450,0.03,191.59,191.58,22.88637614]
[1753671234177,0.03,191.59,191.58,28.10612767]
[1753671234742,0.03,191.59,191.58,30.3913669]
[1753671237970,0.03,191.59,191.58,29.86939175]
[1753671238341,0.03,191.59,191.58,24.64964022]
[1753671238936,0.03,191.59,191.57,8.71345625]
[1753671239276,0.03,191.59,191.56,7.19495625]
[1753671239573,0.03,191.59,191.56,7.84495625]
[1753671239740,0.03,191.59,191.57,7.19495625]
[1753671239939,0.03,191.59,191.58,7.19495625]
[1753671240165,0.03,191.59,191.58,7.84495625]
[1753671240364,0.03,191.61,191.58,7.84495625]
[1753671240565,0.03,191.61,191.6,25.54304022]
[1753671240945,0.03,191.61,191.6,26.19304022]
[1753671242842,0.03,191.61,191.6,31.4122469]
[1753671245143,0.03,191.61,191.6,26.19304022]
[1753671245652,0.03,191.64,191.62,26.0]
[1753671245855,0.03,191.68,191.67,16.78468397]
[1753671246051,0.03,191.68,191.67,24.50137027]
[1753671246255,0.03,191.68,191.67,25.15137027]
[1753671246459,0.03,191.68,191.67,17.95641402]
[1753671246653,0.03,191.68,191.67,25.15137027]
[1753671246850,0.03,191.68,191.67,24.62964022]
[1753671247050,0.03,191.68,191.67,26.0]
[1753671247252,0.03,191.68,191.67,49.97964022]
[1753671247471,0.03,191.68,191.67,51.15137027]
[1753671247674,0.03,191.68,191.65,26.0]
[1753671247865,0.03,191.68,191.67,7.19495625]
[1753671248178,0.03,191.68,191.66,16.78468397]
[1753671248488,0.03,191.68,191.65,26.0]
[1753671248658,0.03,191.68,191.67,7.19495625]
[1753671249054,0.03,191.68,191.66,7.19495625]
[1753671249260,0.75,191.68,191.64,49.97964022]
[1753671249774,0.03,191.68,191.64,49.97964022]
[1753671250573,0.75,191.68,191.64,49.97964022]
[1753671250758,0.03,191.68,191.64,50.62964022]
[1753671250967,0.03,191.68,191.65,7.19495625]
[1753671251362,0.03,191.68,191.66,7.19495625]
[1753671251559,0.03,191.68,191.67,7.19495625]
[1753671252066,0.03,191.68,191.67,24.62964022]
[1753671252789,0.03,191.68,191.65,16.78468397]
[1753671252996,0.03,191.68,191.66,7.19495625]
[1753671253374,0.03,191.68,191.62,16.78468397]
[1753671253675,0.03,191.68,191.65,7.19495625]
[1753671254088,0.03,191.68,191.65,7.84495625]
[1753671254280,0.03,191.68,191.64,16.78468397]
[1753671254483,0.03,191.68,191.65,7.19495625]
[1753671254683,5.24702838,191.68,191.65,7.19495625]
[1753671256195,0.03,191.68,191.66,7.84495625]
[1753671256401,0.03,191.68,191.67,7.84495625]
[1753671256900,0.03,191.68,191.67,24.62964022]
[1753671258196,0.03,191.68,191.67,26.28164022]
[1753671258380,0.03,191.68,191.67,31.49894078]
[1753671258772,0.03,191.68,191.67,26.28164022]
[1753671258995,0.03,191.68,191.67,32.02067083]
[1753671259197,0.03,191.68,191.67,26.28164022]
[1753671260374,0.03,191.68,191.67,26.80337027]
[1753671261278,0.03,191.68,191.67,32.02067083]
[1753671262114,0.03,191.68,191.67,26.80337027]
[1753671262401,0.03,191.68,191.67,23.97964022]
[1753671262704,0.03,191.68,191.67,30.36867083]
[1753671263610,0.03,191.69,191.68,16.78468397]
[1753671263813,0.03,191.69,191.68,23.97964022]
[1753671263980,0.03,191.69,191.68,24.62964022]
[1753671264409,0.03,191.69,191.68,29.8466686]
[1753671267310,0.03,191.69,191.68,144.1466686]
[1753671267612,0.03,191.72,191.71,42.78468397]
[1753671267783,0.03,191.72,191.71,89.97476141]
[1753671267981,0.03,191.72,191.71,90.65476141]
[1753671269292,0.03,191.72,191.71,95.87097339]
[1753671269490,0.03,191.72,191.71,96.15529653]
[1753671271006,0.03,191.72,191.71,95.87097339]
[1753671271608,0.03,191.72,191.71,49.97964022]
[1753671271791,0.03,191.72,191.71,23.97964022]
[1753671271983,0.71,191.72,191.71,7.19495625]
[1753671272183,0.03,191.72,191.71,7.19495625]
[1753671274020,0.71,191.72,191.71,7.19495625]
[1753671274204,0.03,191.72,191.71,7.19495625]
[1753671276003,0.03,191.72,191.71,23.97964022]
[1753671277517,0.03,191.72,191.71,7.19495625]
[1753671278913,0.03,191.72,191.71,4.90136113]
[1753671281806,0.71,191.72,191.69,21.6860451]
[1753671282123,0.03,191.72,191.69,16.78468397]
[1753671282330,0.68,191.71,191.63,88.3]
[1753671282631,5.21648408,191.7,191.66,4.90136113]
[1753671283000,0.68,191.69,191.66,4.90136113]
[1753671283199,5.21648408,191.7,191.67,4.90136113]
[1753671283500,6.1416,191.72,191.67,4.90136113]
[1753671283721,6.8216,191.72,191.67,5.58136113]
[1753671284222,0.03,191.72,191.7,4.90136113]
[1753671284423,0.03,191.72,191.71,6.10298232]
[1753671285101,0.03,191.72,191.71,65.96387827]
[1753671285620,0.03,191.72,191.71,91.96387827]
[1753671286615,0.03,191.72,191.71,92.24820141]
[1753671286830,0.03,191.72,191.71,95.18337681]
[1753671287508,0.03,191.72,191.71,89.68284169]
[1753671287708,0.03,191.72,191.71,51.14284169]
[1753671287919,0.03,191.72,191.71,89.00284169]
[1753671288229,0.03,191.72,191.71,88.4812205]
[1753671288436,0.03,191.72,191.71,93.69743248]
[1753671288825,0.03,191.72,191.71,24.6212205]
[1753671289025,0.03,191.72,191.71,62.4612205]
[1753671290034,0.03,191.72,191.71,24.6212205]
[1753671294841,0.71,191.72,191.7,7.83653653]
[1753671295047,0.69,191.71,191.69,0.06]
[1753671295416,0.69,191.7,191.69,0.06]
[1753671296448,5.90648408,191.7,191.69,0.06]
[1753671296617,13.74302061,191.7,191.69,0.06]